[Event "Titled Tuesday Blitz March 22 Late 2022"]
[White "Moussard, Jules"]
[Black "Plotnikov, Pavel"]
[WhiteFideId "642908"]
[BlackFideId "4170342"]
[WhiteElo "2557"]
[BlackElo "2298"]
[Result "1-0"]
[Round "03"]
[TimeControl "180+1"]
[Date "2022.03.22"]
[WhiteClock "0:02:17"]
[BlackClock "0:01:15"]

1. Nf3 {[%clk 0:03:00]}  e6 {[%clk 0:02:59]} 2. e3 {[%clk 0:02:59]}  f5 {[%clk 0:02:59]} 3. b3 {[%clk 0:02:58]}  Nf6 {[%clk 0:02:58]} 4. Bb2 {[%clk 0:02:59]}  b6 {[%clk 0:02:59]} 5. c4 {[%clk 0:02:57]}  Bb7 {[%clk 0:02:59]} 6. Nc3 {[%clk 0:02:58]}  c5 {[%clk 0:02:59]} 7. d4 {[%clk 0:02:57]}  d6 {[%clk 0:02:55]} 8. d5 {[%clk 0:02:48]}  e5 {[%clk 0:02:43]} 9. e4 {[%clk 0:02:42]}  f4 {[%clk 0:02:40]} 10. g3 {[%clk 0:02:32]}  fxg3 {[%clk 0:02:28]} 11. hxg3 {[%clk 0:02:30]}  Bc8 {[%clk 0:02:17]} 12. Bh3 {[%clk 0:02:29]}  Bxh3 {[%clk 0:02:16]} 13. Rxh3 {[%clk 0:02:30]}  Qd7 {[%clk 0:02:15]} 14. Rh1 {[%clk 0:02:31]}  Na6 {[%clk 0:02:14]} 15. Ng5 {[%clk 0:02:30]}  Nc7 {[%clk 0:02:12]} 16. a4 {[%clk 0:02:31]}  a5 {[%clk 0:02:08]} 17. Nb5 {[%clk 0:02:30]}  O-O-O {[%clk 0:02:03]} 18. Nxc7 {[%clk 0:02:29]}  Qxc7 {[%clk 0:01:57]} 19. Ne6 {[%clk 0:02:30]}  Qf7 {[%clk 0:01:56]} 20. Nxd8 {[%clk 0:02:30]}  Kxd8 {[%clk 0:01:57]} 21. Qf3 {[%clk 0:02:15]}  Qg6 {[%clk 0:01:53]} 22. Qf5 {[%clk 0:02:15]}  Qxf5 {[%clk 0:01:42]} 23. exf5 {[%clk 0:02:16]}  Be7 {[%clk 0:01:38]} 24. f3 {[%clk 0:02:16]}  Rf8 {[%clk 0:01:37]} 25. g4 {[%clk 0:02:17]}  h6 {[%clk 0:01:37]} 26. Ke2 {[%clk 0:02:17]}  Nh7 {[%clk 0:01:37]} 27. f4 {[%clk 0:02:16]}  exf4 {[%clk 0:01:20]} 28. Bxg7 {[%clk 0:02:17]}  Rg8 {[%clk 0:01:18]} 29. Bxh6 {[%clk 0:02:17]}  Rxg4 {[%clk 0:01:18]} 30. Rag1 {[%clk 0:02:18]}  Nf6 {[%clk 0:01:15]} 31. Rxg4 {[%clk 0:02:17]} 1-0


[Site "https://www.chess.com"]

[Event "Titled Tuesday Blitz March 22 Late 2022"]
[White "Nazaretyan, Tigran"]
[Black "Ferreira, Vitor Hugo Vieira"]
[WhiteFideId "24162345"]
[BlackFideId "2119765"]
[WhiteElo "2219"]
[BlackElo "2165"]
[Result "1-0"]
[Round "03"]
[TimeControl "180+1"]
[Date "2022.03.22"]
[WhiteClock "0:00:48"]
[BlackClock "0:01:02"]

1. d4 {[%clk 0:03:00]}  d5 {[%clk 0:02:57]} 2. c4 {[%clk 0:03:00]}  c6 {[%clk 0:02:57]} 3. Nf3 {[%clk 0:02:59]}  Nf6 {[%clk 0:02:57]} 4. Nc3 {[%clk 0:02:59]}  e6 {[%clk 0:02:57]} 5. e3 {[%clk 0:02:59]}  Nbd7 {[%clk 0:02:56]} 6. Qc2 {[%clk 0:02:59]}  Bd6 {[%clk 0:02:55]} 7. Be2 {[%clk 0:02:59]}  O-O {[%clk 0:02:55]} 8. O-O {[%clk 0:02:58]}  b6 {[%clk 0:02:52]} 9. b3 {[%clk 0:02:55]}  Bb7 {[%clk 0:02:52]} 10. Bb2 {[%clk 0:02:55]}  Qe7 {[%clk 0:02:52]} 11. h3 {[%clk 0:02:48]}  Rac8 {[%clk 0:02:46]} 12. Rad1 {[%clk 0:02:45]}  Rfd8 {[%clk 0:02:43]} 13. e4 {[%clk 0:02:44]}  e5 {[%clk 0:02:40]} 14. Rfe1 {[%clk 0:02:28]}  exd4 {[%clk 0:02:38]} 15. Nxd4 {[%clk 0:02:26]}  Be5 {[%clk 0:02:08]} 16. exd5 {[%clk 0:02:17]}  cxd5 {[%clk 0:02:06]} 17. Bf3 {[%clk 0:02:12]}  Nc5 {[%clk 0:01:36]} 18. Nf5 {[%clk 0:02:02]}  Qc7 {[%clk 0:01:36]} 19. Nb5 {[%clk 0:02:00]}  Bh2+ {[%clk 0:01:36]} 20. Kh1 {[%clk 0:02:00]}  Qb8 {[%clk 0:01:36]} 21. Ne7+ {[%clk 0:01:37]}  Kh8 {[%clk 0:01:35]} 22. Nxc8 {[%clk 0:01:24]}  Rxc8 {[%clk 0:01:35]} 23. Qf5 {[%clk 0:01:19]}  Nce4 {[%clk 0:01:21]} 24. Bxe4 {[%clk 0:01:11]}  Nxe4 {[%clk 0:01:21]} 25. Rxe4 {[%clk 0:00:52]}  dxe4 {[%clk 0:01:17]} 26. Qxf7 {[%clk 0:00:51]}  Rg8 {[%clk 0:01:09]} 27. Rd7 {[%clk 0:00:49]}  Be5 {[%clk 0:01:08]} 28. Rxb7 {[%clk 0:00:49]}  Qd8 {[%clk 0:01:02]} 29. Bxe5 {[%clk 0:00:48]}  Qd1+ {[%clk 0:01:02]} 30. Kh2 {[%clk 0:00:48]} 1-0


[Site "https://www.chess.com"]

[Event "Titled Tuesday Blitz March 22 Late 2022"]
[White "Niemann, Hans Moke"]
[Black "Garriga Cazorla, Pere"]
[WhiteFideId "2093596"]
[BlackFideId "32011601"]
[WhiteElo "2632"]
[BlackElo "2458"]
[Result "1-0"]
[Round "03"]
[TimeControl "180+1"]
[Date "2022.03.22"]
[WhiteClock "0:00:36"]
[BlackClock "0:00:11"]

1. d4 {[%clk 0:03:00]}  Nf6 {[%clk 0:02:52]} 2. Nc3 {[%clk 0:03:00]}  d5 {[%clk 0:02:52]} 3. Bf4 {[%clk 0:03:01]}  c5 {[%clk 0:02:52]} 4. e4 {[%clk 0:03:00]}  cxd4 {[%clk 0:02:51]} 5. Qxd4 {[%clk 0:02:59]}  Nc6 {[%clk 0:02:51]} 6. Bb5 {[%clk 0:02:59]}  e6 {[%clk 0:02:51]} 7. exd5 {[%clk 0:02:57]}  exd5 {[%clk 0:02:52]} 8. O-O-O {[%clk 0:02:55]}  a6 {[%clk 0:02:36]} 9. Bxc6+ {[%clk 0:02:33]}  bxc6 {[%clk 0:02:35]} 10. Nf3 {[%clk 0:02:33]}  Be7 {[%clk 0:02:35]} 11. Ne5 {[%clk 0:02:33]}  Bb7 {[%clk 0:02:30]} 12. Rhe1 {[%clk 0:02:31]}  O-O {[%clk 0:02:29]} 13. Na4 {[%clk 0:02:29]}  Re8 {[%clk 0:02:09]} 14. f3 {[%clk 0:02:23]}  Qa5 {[%clk 0:01:55]} 15. Nd3 {[%clk 0:02:15]}  Nd7 {[%clk 0:01:45]} 16. Bd2 {[%clk 0:02:11]}  Qb5 {[%clk 0:01:22]} 17. Nc3 {[%clk 0:02:01]}  Qb6 {[%clk 0:01:22]} 18. Qxb6 {[%clk 0:01:58]}  Nxb6 {[%clk 0:01:23]} 19. Be3 {[%clk 0:01:53]}  Nd7 {[%clk 0:01:19]} 20. Na4 {[%clk 0:01:52]}  a5 {[%clk 0:01:18]} 21. Bc5 {[%clk 0:01:49]}  Bf6 {[%clk 0:01:15]} 22. Bd6 {[%clk 0:01:45]}  Ba6 {[%clk 0:01:10]} 23. Nac5 {[%clk 0:01:45]}  Nxc5 {[%clk 0:01:10]} 24. Nxc5 {[%clk 0:01:46]}  Be2 {[%clk 0:01:07]} 25. Rd2 {[%clk 0:01:44]}  Bb5 {[%clk 0:00:57]} 26. Rxe8+ {[%clk 0:01:38]}  Rxe8 {[%clk 0:00:58]} 27. Kd1 {[%clk 0:01:39]}  a4 {[%clk 0:00:57]} 28. b3 {[%clk 0:01:36]}  axb3 {[%clk 0:00:52]} 29. cxb3 {[%clk 0:01:32]}  h5 {[%clk 0:00:46]} 30. Kc2 {[%clk 0:01:30]}  Re1 {[%clk 0:00:35]} 31. a4 {[%clk 0:01:28]}  Bf1 {[%clk 0:00:34]} 32. Nd7 {[%clk 0:01:19]}  Bd8 {[%clk 0:00:26]} 33. Bb4 {[%clk 0:01:13]}  Re6 {[%clk 0:00:20]} 34. f4 {[%clk 0:01:09]}  h4 {[%clk 0:00:20]} 35. Bc3 {[%clk 0:01:07]}  f6 {[%clk 0:00:20]} 36. Bd4 {[%clk 0:01:06]}  Kf7 {[%clk 0:00:20]} 37. b4 {[%clk 0:01:06]}  h3 {[%clk 0:00:20]} 38. gxh3 {[%clk 0:01:05]}  Bxh3 {[%clk 0:00:20]} 39. Nc5 {[%clk 0:01:06]}  Re7 {[%clk 0:00:19]} 40. a5 {[%clk 0:01:06]}  Bf1 {[%clk 0:00:20]} 41. Rf2 {[%clk 0:01:00]}  Bb5 {[%clk 0:00:20]} 42. Kd2 {[%clk 0:01:00]}  Bc7 {[%clk 0:00:21]} 43. Be3 {[%clk 0:00:56]}  Bd6 {[%clk 0:00:21]} 44. f5 {[%clk 0:00:56]}  Re8 {[%clk 0:00:10]} 45. Rg2 {[%clk 0:00:56]}  Rh8 {[%clk 0:00:10]} 46. Bg1 {[%clk 0:00:55]}  Rh5 {[%clk 0:00:09]} 47. Ne6 {[%clk 0:00:53]}  Rxf5 {[%clk 0:00:09]} 48. Nd4 {[%clk 0:00:54]}  Bxb4+ {[%clk 0:00:07]} 49. Kc2 {[%clk 0:00:53]}  Ba4+ {[%clk 0:00:07]} 50. Kb2 {[%clk 0:00:50]}  Rf1 {[%clk 0:00:08]} 51. a6 {[%clk 0:00:50]}  Bc5 {[%clk 0:00:06]} 52. Be3 {[%clk 0:00:39]}  Re1 {[%clk 0:00:06]} 53. Bf2 {[%clk 0:00:32]}  Re8 {[%clk 0:00:06]} 54. Nf5 {[%clk 0:00:31]}  Bxf2 {[%clk 0:00:06]} 55. Nd6+ {[%clk 0:00:31]}  Kf8 {[%clk 0:00:06]} 56. Nxe8 {[%clk 0:00:31]}  Bd4+ {[%clk 0:00:06]} 57. Ka3 {[%clk 0:00:32]}  Bb5 {[%clk 0:00:07]} 58. Nc7 {[%clk 0:00:32]}  Bc4 {[%clk 0:00:05]} 59. Ne6+ {[%clk 0:00:32]}  Kf7 {[%clk 0:00:05]} 60. Nxd4 {[%clk 0:00:33]}  Bxa6 {[%clk 0:00:06]} 61. Nxc6 {[%clk 0:00:33]}  Bd3 {[%clk 0:00:06]} 62. Nd4 {[%clk 0:00:34]}  Be4 {[%clk 0:00:07]} 63. Rf2 {[%clk 0:00:35]}  g5 {[%clk 0:00:07]} 64. Kb4 {[%clk 0:00:35]}  Kg6 {[%clk 0:00:08]} 65. Kc5 {[%clk 0:00:36]}  f5 {[%clk 0:00:09]} 66. Kd6 {[%clk 0:00:36]}  Kf6 {[%clk 0:00:09]} 67. Ne2 {[%clk 0:00:33]}  f4 {[%clk 0:00:09]} 68. Nc3 {[%clk 0:00:34]}  Kf5 {[%clk 0:00:09]} 69. Nxd5 {[%clk 0:00:35]}  Bxd5 {[%clk 0:00:09]} 70. Kxd5 {[%clk 0:00:35]}  g4 {[%clk 0:00:10]} 71. Kd4 {[%clk 0:00:35]}  g3 {[%clk 0:00:11]} 72. hxg3 {[%clk 0:00:36]} 1-0


[Site "https://www.chess.com"]

[Event "Titled Tuesday Blitz March 22 Late 2022"]
[White "Ozates, Tuna"]
[Black "Akobian, Varuzhan"]
[WhiteFideId "6354521"]
[BlackFideId "13300580"]
[WhiteElo "2536"]
[BlackElo "2777"]
[Result "1-0"]
[Round "03"]
[TimeControl "180+1"]
[Date "2022.03.22"]
[WhiteClock "0:00:06"]
[BlackClock "0:00:05"]

1. e4 {[%clk 0:03:00]}  d6 {[%clk 0:02:59]} 2. d4 {[%clk 0:02:58]}  Nf6 {[%clk 0:02:59]} 3. Nc3 {[%clk 0:02:58]}  c6 {[%clk 0:02:59]} 4. f4 {[%clk 0:02:58]}  Qa5 {[%clk 0:02:59]} 5. e5 {[%clk 0:02:56]}  Ne4 {[%clk 0:02:58]} 6. Nf3 {[%clk 0:02:48]}  d5 {[%clk 0:02:58]} 7. Bd3 {[%clk 0:02:45]}  Nxc3 {[%clk 0:02:57]} 8. bxc3 {[%clk 0:02:45]}  c5 {[%clk 0:02:55]} 9. Bd2 {[%clk 0:02:13]}  c4 {[%clk 0:02:54]} 10. Be2 {[%clk 0:02:14]}  e6 {[%clk 0:02:46]} 11. O-O {[%clk 0:02:11]}  Be7 {[%clk 0:02:45]} 12. g4 {[%clk 0:02:08]}  h5 {[%clk 0:02:38]} 13. h3 {[%clk 0:02:07]}  hxg4 {[%clk 0:02:38]} 14. hxg4 {[%clk 0:02:07]}  g6 {[%clk 0:02:34]} 15. Kg2 {[%clk 0:02:06]}  Nc6 {[%clk 0:01:58]} 16. Rh1 {[%clk 0:02:02]}  Rf8 {[%clk 0:01:57]} 17. Qb1 {[%clk 0:01:52]}  Bd7 {[%clk 0:01:53]} 18. Rh7 {[%clk 0:01:45]}  O-O-O {[%clk 0:01:52]} 19. a4 {[%clk 0:01:28]}  Qc7 {[%clk 0:01:03]} 20. g5 {[%clk 0:01:18]}  Rde8 {[%clk 0:00:51]} 21. Qh1 {[%clk 0:01:15]}  Qa5 {[%clk 0:00:37]} 22. Kf2 {[%clk 0:01:06]}  Nd8 {[%clk 0:00:37]} 23. Nh2 {[%clk 0:00:35]}  Bxa4 {[%clk 0:00:34]} 24. Ng4 {[%clk 0:00:35]}  Qb5 {[%clk 0:00:27]} 25. Ra2 {[%clk 0:00:28]}  Qc6 {[%clk 0:00:20]} 26. Qa1 {[%clk 0:00:23]}  b5 {[%clk 0:00:20]} 27. Bc1 {[%clk 0:00:19]}  Rh8 {[%clk 0:00:18]} 28. Rxh8 {[%clk 0:00:18]}  Rxh8 {[%clk 0:00:18]} 29. Ba3 {[%clk 0:00:18]}  Bxa3 {[%clk 0:00:15]} 30. Rxa3 {[%clk 0:00:18]}  Qb6 {[%clk 0:00:08]} 31. Qb2 {[%clk 0:00:10]}  Nc6 {[%clk 0:00:08]} 32. Nf6 {[%clk 0:00:08]}  Rh2+ {[%clk 0:00:05]} 33. Ke3 {[%clk 0:00:06]} 1-0


[Site "https://www.chess.com"]

[Event "Titled Tuesday Blitz March 22 Late 2022"]
[White "Prohorov, Olexandr"]
[Black "Luo, Terry"]
[WhiteFideId "14105578"]
[BlackFideId "30931045"]
[WhiteElo "1993"]
[BlackElo "2024"]
[Result "1/2-1/2"]
[Round "03"]
[TimeControl "180+1"]
[Date "2022.03.22"]
[WhiteClock "0:00:04"]
[BlackClock "0:01:44"]

1. Nf3 {[%clk 0:03:00]}  Nf6 {[%clk 0:03:00]} 2. c4 {[%clk 0:02:58]}  g6 {[%clk 0:03:00]} 3. Nc3 {[%clk 0:02:58]}  Bg7 {[%clk 0:03:00]} 4. g3 {[%clk 0:02:58]}  O-O {[%clk 0:03:01]} 5. Bg2 {[%clk 0:02:59]}  c5 {[%clk 0:03:01]} 6. O-O {[%clk 0:02:58]}  Nc6 {[%clk 0:03:02]} 7. d3 {[%clk 0:02:52]}  d6 {[%clk 0:03:01]} 8. a3 {[%clk 0:02:52]}  a6 {[%clk 0:02:57]} 9. Rb1 {[%clk 0:02:52]}  Rb8 {[%clk 0:02:56]} 10. b4 {[%clk 0:02:52]}  cxb4 {[%clk 0:02:55]} 11. axb4 {[%clk 0:02:53]}  b5 {[%clk 0:02:56]} 12. cxb5 {[%clk 0:02:54]}  axb5 {[%clk 0:02:57]} 13. d4 {[%clk 0:02:51]}  Bf5 {[%clk 0:02:54]} 14. Rb3 {[%clk 0:02:42]}  d5 {[%clk 0:02:54]} 15. Ne5 {[%clk 0:02:37]}  Qb6 {[%clk 0:02:51]} 16. Be3 {[%clk 0:02:07]}  Rfd8 {[%clk 0:02:44]} 17. h3 {[%clk 0:01:45]}  Nxe5 {[%clk 0:02:39]} 18. dxe5 {[%clk 0:01:41]}  d4 {[%clk 0:02:39]} 19. exf6 {[%clk 0:01:37]}  dxe3 {[%clk 0:02:37]} 20. Nd5 {[%clk 0:01:33]}  exf2+ {[%clk 0:02:30]} 21. Kh2 {[%clk 0:01:33]}  Rxd5 {[%clk 0:02:30]} 22. Bxd5 {[%clk 0:01:26]}  Bxf6 {[%clk 0:02:28]} 23. e4 {[%clk 0:01:23]}  Be6 {[%clk 0:02:19]} 24. Bxe6 {[%clk 0:01:23]}  fxe6 {[%clk 0:02:20]} 25. Qd2 {[%clk 0:01:14]}  Bd4 {[%clk 0:02:17]} 26. Rf3 {[%clk 0:01:07]}  e5 {[%clk 0:02:13]} 27. Qa2+ {[%clk 0:01:02]}  e6 {[%clk 0:02:12]} 28. Rf6 {[%clk 0:00:52]}  Re8 {[%clk 0:02:12]} 29. Qb3 {[%clk 0:00:35]}  Qd6 {[%clk 0:02:04]} 30. Qf3 {[%clk 0:00:29]}  Qxb4 {[%clk 0:02:02]} 31. h4 {[%clk 0:00:27]}  Rf8 {[%clk 0:02:00]} 32. Kg2 {[%clk 0:00:17]}  Rxf6 {[%clk 0:01:59]} 33. Qxf6 {[%clk 0:00:16]}  Qf8 {[%clk 0:01:51]} 34. Qxf8+ {[%clk 0:00:10]}  Kxf8 {[%clk 0:01:51]} 35. Rb1 {[%clk 0:00:11]}  Kf7 {[%clk 0:01:44]} 36. Rxb5 {[%clk 0:00:12]}  Kf6 {[%clk 0:01:44]} 37. Rb8 {[%clk 0:00:06]}  Kg7 {[%clk 0:01:44]} 38. Rb7+ {[%clk 0:00:05]}  Kf6 {[%clk 0:01:44]} 39. Rxh7 {[%clk 0:00:04]}  Be3 {[%clk 0:01:43]} 40. Rb7 {[%clk 0:00:03]}  Bd4 {[%clk 0:01:44]} 41. Rc7 {[%clk 0:00:02]}  g5 {[%clk 0:01:42]} 42. hxg5+ {[%clk 0:00:02]}  Kxg5 {[%clk 0:01:42]} 43. Re7 {[%clk 0:00:02]}  Kf6 {[%clk 0:01:43]} 44. Rc7 {[%clk 0:00:02]}  Be3 {[%clk 0:01:42]} 45. Rc3 {[%clk 0:00:02]}  Bd4 {[%clk 0:01:42]} 46. Rc6 {[%clk 0:00:03]}  Ke7 {[%clk 0:01:42]} 47. Ra6 {[%clk 0:00:03]}  Kd7 {[%clk 0:01:43]} 48. Kf1 {[%clk 0:00:02]}  Ke7 {[%clk 0:01:43]} 49. Kg2 {[%clk 0:00:03]}  Kf6 {[%clk 0:01:44]} 50. Kf1 {[%clk 0:00:02]}  Kf7 {[%clk 0:01:44]} 51. Kg2 {[%clk 0:00:03]}  Kf6 {[%clk 0:01:45]} 52. Rc6 {[%clk 0:00:04]}  Be3 {[%clk 0:01:44]} 53. Ra6 {[%clk 0:00:04]}  Bd4 {[%clk 0:01:44]} 1/2-1/2


[Site "https://www.chess.com"]

[Event "Titled Tuesday Blitz March 22 Late 2022"]
[White "Przybylski, Wojciech"]
[Black "Zhukov, Maksim"]
[WhiteFideId "1117599"]
[BlackFideId "34181790"]
[WhiteElo "2133"]
[BlackElo "1978"]
[Result "0-1"]
[Round "03"]
[TimeControl "180+1"]
[Date "2022.03.22"]
[WhiteClock "0:00:01"]
[BlackClock "0:00:05"]

1. e4 {[%clk 0:02:59]}  c6 {[%clk 0:02:59]} 2. Nc3 {[%clk 0:02:56]}  d5 {[%clk 0:02:59]} 3. Nf3 {[%clk 0:02:56]}  dxe4 {[%clk 0:03:00]} 4. Nxe4 {[%clk 0:02:57]}  Nd7 {[%clk 0:03:00]} 5. g3 {[%clk 0:02:55]}  Ngf6 {[%clk 0:03:00]} 6. Nc3 {[%clk 0:02:54]}  b6 {[%clk 0:02:59]} 7. Bg2 {[%clk 0:02:54]}  Bb7 {[%clk 0:02:59]} 8. O-O {[%clk 0:02:54]}  c5 {[%clk 0:02:59]} 9. Re1 {[%clk 0:02:54]}  e6 {[%clk 0:02:59]} 10. d3 {[%clk 0:02:54]}  Bd6 {[%clk 0:02:58]} 11. h3 {[%clk 0:02:53]}  O-O {[%clk 0:02:58]} 12. Ne4 {[%clk 0:02:52]}  Be7 {[%clk 0:02:39]} 13. Bf4 {[%clk 0:02:51]}  Rc8 {[%clk 0:02:31]} 14. Nd6 {[%clk 0:02:49]}  Bxd6 {[%clk 0:02:31]} 15. Bxd6 {[%clk 0:02:50]}  Re8 {[%clk 0:02:31]} 16. Bf4 {[%clk 0:02:49]}  Nd5 {[%clk 0:02:18]} 17. Bg5 {[%clk 0:02:48]}  Qc7 {[%clk 0:02:18]} 18. a4 {[%clk 0:02:46]}  h6 {[%clk 0:02:12]} 19. Bd2 {[%clk 0:02:45]}  Red8 {[%clk 0:02:11]} 20. c3 {[%clk 0:02:38]}  Ba6 {[%clk 0:02:04]} 21. Qc2 {[%clk 0:02:37]}  Nf8 {[%clk 0:01:50]} 22. Rad1 {[%clk 0:02:35]}  Ng6 {[%clk 0:01:43]} 23. Bc1 {[%clk 0:02:33]}  Nde7 {[%clk 0:01:42]} 24. b3 {[%clk 0:02:28]}  Rd7 {[%clk 0:01:40]} 25. c4 {[%clk 0:02:22]}  Rcd8 {[%clk 0:01:38]} 26. Bb2 {[%clk 0:02:22]}  Nc6 {[%clk 0:01:31]} 27. h4 {[%clk 0:02:20]}  Nf8 {[%clk 0:01:25]} 28. Ne5 {[%clk 0:02:18]}  Nxe5 {[%clk 0:01:16]} 29. Bxe5 {[%clk 0:02:19]}  Qc8 {[%clk 0:01:15]} 30. Bb2 {[%clk 0:02:13]}  Bb7 {[%clk 0:01:14]} 31. Re3 {[%clk 0:02:01]}  Bxg2 {[%clk 0:01:13]} 32. Kxg2 {[%clk 0:02:01]}  f6 {[%clk 0:01:07]} 33. Qe2 {[%clk 0:01:56]}  e5 {[%clk 0:01:05]} 34. Qg4 {[%clk 0:01:47]}  Rd6 {[%clk 0:00:38]} 35. Qe2 {[%clk 0:01:36]}  Ne6 {[%clk 0:00:34]} 36. h5 {[%clk 0:01:34]}  Qd7 {[%clk 0:00:28]} 37. Qf3 {[%clk 0:01:25]}  Ng5 {[%clk 0:00:27]} 38. Qe2 {[%clk 0:01:24]}  e4 {[%clk 0:00:17]} 39. Rxe4 {[%clk 0:01:00]}  Nxe4 {[%clk 0:00:13]} 40. Qxe4 {[%clk 0:01:01]}  Rxd3 {[%clk 0:00:11]} 41. Re1 {[%clk 0:01:00]}  Rd6 {[%clk 0:00:09]} 42. Bc1 {[%clk 0:00:48]}  Qc6 {[%clk 0:00:05]} 43. Bf4 {[%clk 0:00:45]}  Qxe4+ {[%clk 0:00:04]} 44. Rxe4 {[%clk 0:00:45]}  R6d7 {[%clk 0:00:05]} 45. Be3 {[%clk 0:00:38]}  Kf7 {[%clk 0:00:04]} 46. a5 {[%clk 0:00:38]}  Re8 {[%clk 0:00:04]} 47. Rh4 {[%clk 0:00:38]}  Rd3 {[%clk 0:00:04]} 48. axb6 {[%clk 0:00:28]}  axb6 {[%clk 0:00:05]} 49. b4 {[%clk 0:00:27]}  cxb4 {[%clk 0:00:06]} 50. c5 {[%clk 0:00:27]}  bxc5 {[%clk 0:00:05]} 51. Bxc5 {[%clk 0:00:27]}  b3 {[%clk 0:00:05]} 52. Rb4 {[%clk 0:00:26]}  Rc8 {[%clk 0:00:04]} 53. Be3 {[%clk 0:00:25]}  Rc2 {[%clk 0:00:04]} 54. Kf3 {[%clk 0:00:25]}  b2 {[%clk 0:00:04]} 55. Rb7+ {[%clk 0:00:25]}  Ke6 {[%clk 0:00:04]} 56. Rb6+ {[%clk 0:00:25]}  Rd6 {[%clk 0:00:04]} 57. Rb3 {[%clk 0:00:23]}  Rd1 {[%clk 0:00:05]} 58. Rb6+ {[%clk 0:00:21]}  Kd5 {[%clk 0:00:06]} 59. Rb5+ {[%clk 0:00:17]}  Kc6 {[%clk 0:00:06]} 60. Rb6+ {[%clk 0:00:11]}  Kc7 {[%clk 0:00:07]} 61. Rb4 {[%clk 0:00:03]}  b1=Q {[%clk 0:00:06]} 62. Rg4 {[%clk 0:00:04]}  Rd3 {[%clk 0:00:06]} 63. Rxg7+ {[%clk 0:00:04]}  Rd7 {[%clk 0:00:06]} 64. Rg6 {[%clk 0:00:03]}  Qb7+ {[%clk 0:00:06]} 65. Kg4 {[%clk 0:00:03]}  Qe4+ {[%clk 0:00:06]} 66. Kh3 {[%clk 0:00:02]}  Qh1+ {[%clk 0:00:06]} 67. Kg4 {[%clk 0:00:02]}  Rc4+ {[%clk 0:00:06]} 68. Bf4+ {[%clk 0:00:02]}  Rxf4+ {[%clk 0:00:06]} 69. Kxf4 {[%clk 0:00:03]}  Qxh5 {[%clk 0:00:06]} 70. Rg8 {[%clk 0:00:02]}  Rd4+ {[%clk 0:00:04]} 71. Ke3 {[%clk 0:00:02]}  Qe5+ {[%clk 0:00:04]} 72. Kf3 {[%clk 0:00:01]}  Qe4# {[%clk 0:00:05]} 0-1


[Site "https://www.chess.com"]

[Event "Titled Tuesday Blitz March 22 Late 2022"]
[White "Rastbod, Ali"]
[Black "Cappai, Davide"]
[WhiteFideId "12567477"]
[BlackFideId "813338"]
[WhiteElo "2200"]
[BlackElo "2295"]
[Result "1-0"]
[Round "03"]
[TimeControl "180+1"]
[Date "2022.03.22"]
[WhiteClock "0:00:35"]
[BlackClock "0:00:34"]

1. c4 {[%clk 0:03:00]}  g6 {[%clk 0:02:57]} 2. g3 {[%clk 0:02:59]}  c6 {[%clk 0:02:57]} 3. Nf3 {[%clk 0:02:59]}  Bg7 {[%clk 0:02:58]} 4. Bg2 {[%clk 0:02:59]}  e5 {[%clk 0:02:56]} 5. O-O {[%clk 0:02:58]}  d6 {[%clk 0:02:56]} 6. d4 {[%clk 0:02:58]}  exd4 {[%clk 0:02:55]} 7. Nxd4 {[%clk 0:02:59]}  Nf6 {[%clk 0:02:54]} 8. Nc3 {[%clk 0:02:58]}  O-O {[%clk 0:02:55]} 9. Bf4 {[%clk 0:02:55]}  Nh5 {[%clk 0:02:53]} 10. Be3 {[%clk 0:02:50]}  Re8 {[%clk 0:02:52]} 11. Qd2 {[%clk 0:02:47]}  Qe7 {[%clk 0:02:44]} 12. Rfd1 {[%clk 0:02:44]}  Na6 {[%clk 0:02:34]} 13. Bg5 {[%clk 0:02:41]}  Bf6 {[%clk 0:02:19]} 14. Bxf6 {[%clk 0:02:39]}  Nxf6 {[%clk 0:02:20]} 15. Nc2 {[%clk 0:02:33]}  Be6 {[%clk 0:02:19]} 16. Qxd6 {[%clk 0:02:30]}  Bxc4 {[%clk 0:02:14]} 17. Ne3 {[%clk 0:02:30]}  Qxd6 {[%clk 0:02:11]} 18. Rxd6 {[%clk 0:02:31]}  Be6 {[%clk 0:02:11]} 19. Rad1 {[%clk 0:02:26]}  Kf8 {[%clk 0:02:10]} 20. a3 {[%clk 0:02:13]}  Ke7 {[%clk 0:02:10]} 21. b4 {[%clk 0:02:14]}  Rad8 {[%clk 0:02:10]} 22. Rxd8 {[%clk 0:02:11]}  Rxd8 {[%clk 0:02:10]} 23. Rxd8 {[%clk 0:02:12]}  Kxd8 {[%clk 0:02:10]} 24. b5 {[%clk 0:02:13]}  Nb8 {[%clk 0:02:09]} 25. bxc6 {[%clk 0:02:10]}  Nxc6 {[%clk 0:02:09]} 26. Bxc6 {[%clk 0:02:10]}  bxc6 {[%clk 0:02:09]} 27. f3 {[%clk 0:02:10]}  Kc7 {[%clk 0:02:06]} 28. Kf2 {[%clk 0:02:05]}  Kb6 {[%clk 0:02:07]} 29. Nc2 {[%clk 0:02:05]}  c5 {[%clk 0:02:05]} 30. e4 {[%clk 0:02:04]}  Bb3 {[%clk 0:02:05]} 31. Ne3 {[%clk 0:02:03]}  Nd7 {[%clk 0:02:05]} 32. f4 {[%clk 0:02:02]}  Kc6 {[%clk 0:02:01]} 33. e5 {[%clk 0:02:00]}  Be6 {[%clk 0:01:49]} 34. g4 {[%clk 0:01:57]}  Bb3 {[%clk 0:01:44]} 35. Ke2 {[%clk 0:01:55]}  Nb6 {[%clk 0:01:36]} 36. Kd3 {[%clk 0:01:53]}  Nd5 {[%clk 0:01:18]} 37. Nexd5 {[%clk 0:01:44]}  Bxd5 {[%clk 0:01:18]} 38. f5 {[%clk 0:01:45]}  Bf3 {[%clk 0:01:16]} 39. e6 {[%clk 0:01:02]}  fxe6 {[%clk 0:01:12]} 40. f6 {[%clk 0:01:02]}  Kd7 {[%clk 0:01:08]} 41. g5 {[%clk 0:01:02]}  Bd5 {[%clk 0:01:03]} 42. Ne2 {[%clk 0:00:55]}  Ke8 {[%clk 0:00:56]} 43. Ke3 {[%clk 0:00:50]}  Kd7 {[%clk 0:00:43]} 44. Nf4 {[%clk 0:00:50]}  Kd6 {[%clk 0:00:44]} 45. h4 {[%clk 0:00:38]}  Kd7 {[%clk 0:00:42]} 46. Nd3 {[%clk 0:00:36]}  c4 {[%clk 0:00:41]} 47. Ne5+ {[%clk 0:00:36]}  Ke8 {[%clk 0:00:42]} 48. Kd4 {[%clk 0:00:36]}  a5 {[%clk 0:00:42]} 49. Nxc4 {[%clk 0:00:36]}  Bxc4 {[%clk 0:00:38]} 50. Kxc4 {[%clk 0:00:37]}  Kd7 {[%clk 0:00:39]} 51. Kc5 {[%clk 0:00:36]}  a4 {[%clk 0:00:37]} 52. Kb4 {[%clk 0:00:34]}  e5 {[%clk 0:00:36]} 53. Kxa4 {[%clk 0:00:34]}  e4 {[%clk 0:00:34]} 54. Kb3 {[%clk 0:00:35]} 1-0


[Site "https://www.chess.com"]